Cogmind - Beta 16 @@@ ROGUE MODE // 2025.12.13 @ 18:26:38 Player: EuleBlut Result: Self-destructed Performance ------------- Evolutions (1) 500 Regions Visited (2) 400 Robots Destroyed (10) 50 Value Destroyed (286) 286 Prototype IDs (2) 40 Alien Tech Used (0) 0 Bonus (0) 0 TOTAL SCORE: 1276 Bonus ------- None Cogmind --------- Core Integrity 337/400 Matter 29/300 Energy 97/100 System Corruption 0% Temperature Cool (0) Movement Rolling (95) Ox1 Location -9/Materials Parts ------- > --- POWER (1) -------- (None) > --- PROPULSION (2) --- Wheel Wheel > --- UTILITY (4) ------ Heat Sink Improved Heat Sink Large Storage Unit ECM Suite > --- WEAPON (2) ------- Medium Laser > --- INVENTORY (15) --- Ion Engine Light Ion Engine Light Treads Wheel Small Storage Unit Peak State ------------ > --- POWER ------------ Light Nuclear Core > --- PROPULSION ------- Light Treads Wheel > --- UTILITY ---------- Heat Sink Improved Heat Sink Large Storage Unit ECM Suite > --- WEAPON ----------- Grenade Launcher > --- INVENTORY -------- Ion Engine Light Ion Engine Wheel Wheel Small Storage Unit Medium Laser [Rating: 12] Favorites ----------- Power Ion Engine Engine Ion Engine Power Core Light Nuclear Core Propulsion Light Treads Treads Light Treads Wheel Wheel Utility Small Storage Unit Device ECM Suite Storage Small Storage Unit Weapon Assault Rifle Energy Gun Medium Laser Ballistic Gun Assault Rifle Launcher Grenade Launcher Special Melee Weapon Datajack Build | -11 -10 -9 ------- Run | Yrd Mat Mat Slots Evolved 2 | . . 2 Power . | . . . Propulsion . | . . . Utility 2 | . . 2 Weapon . | . . . Parts Attached 19 | 6 6 7 Power 2 | 1 . 1 Engine 1 | 1 . . Core 1 | . . 1 Reactor . | . . . Propulsion 6 | 2 2 2 Treads 2 | . 2 . Leg . | . . . Wheel 4 | 2 . 2 Hover . | . . . Flight . | . . . Utility 5 | 1 2 2 Device 3 | . 1 2 Storage 2 | 1 1 . Processor . | . . . Hackware . | . . . Protection . | . . . Artifact . | . . . Weapon 6 | 2 2 2 Energy Gun 1 | . . 1 Energy Cannon . | . . . Ballistic Gun 2 | 2 . . Ballistic Cannon . | . . . Launcher 2 | . 1 1 Special Weapon . | . . . Impact Weapon . | . . . Slashing Weapon . | . . . Piercing Weapon . | . . . Special Melee Weapon 1 | . 1 . Unidentified Prototypes . | . . . Parts Lost 10 | . 4 6 Power 2 | . . 2 Propulsion 3 | . 2 1 Utility . | . . . Weapon 5 | . 2 3 Highest Loss Streak 6 | . 4 6 To Critical Strikes . | . . . Average Backups 5 | 1 5 7 Power 1 | . 1 2 Propulsion . | 1 . . Utility 1 | . 1 1 Weapon 1 | . 1 1 Tool/Special . | . . . Unused Backups 2 | . . 2 Power 1 | . . 1 Propulsion 1 | . . 1 Utility . | . . . Weapon . | . . . Tool/Special . | . . . Average Slot Usage (%) 84 | . 84 83 Engine 11 | . 14 9 Treads 17 | . 16 19 Wheel 6 | . 10 2 Device 10 | . 1 20 Storage 12 | . 14 11 Ballistic Gun 12 | . 14 9 Launcher 9 | . 8 11 Special Melee Weapon 2 | . 3 . Peak Build Rating 12 | 6 8 12 Average Rating 7 | 4 6 9 On Entrance 4 | . 6 8 Avg Prop Armor Cover (%) . | . . . Naked Turns . | . . . Heaviest Build 33 | 14 32 33 Greatest Support 40 | 26 40 40 Greatest Overweight (x) 1 | . . 1 Average Overweight (x) . | . . . Largest Inventory Capacity 15 | 8 15 15 Average Capacity 10 | 6 8 15 Most Carried 10 | 4 8 10 Average Carried 5 | 2 5 7 Final Capacity 15 | 8 15 15 Final Carried 7 | 4 7 5 Class Distribution -------------------- 100% | Mutant Dominant Class ---------------- Mutant | -10/Materials Mutant | -9/Materials Resources | -11 -10 -9 ----------- Run | Yrd Mat Mat Matter Collected 306 | 229 77 . Remotely . | . . . Salvage Created 244 | . 211 33 Parts 14 | . 12 2 Haulers Intercepted . | . . . Recyclers Shooed . | . . . Parts Field Recycled . | . . . Retrieved Matter . | . . . Parts Self-Destructed . | . . . Prevented . | . . . Parts Restored . | . . . Kills | -11 -10 -9 ------- Run | Yrd Mat Mat Combat Hostiles Destroyed 9 | . 7 2 Guns 5 | . 5 . AOE 4 | . 2 2 Classes Destroyed 3 | . 2 1 Watcher 1 | . . 1 Swarmer 3 | . 3 . Grunt 6 | . 4 2 Best Kill Streak 5 | . 5 2 Combat Bots Only 5 | . 5 2 Max Kills in Single Turn 2 | . 2 1 Gunslinging . | . . . Exploded 2 | . 2 1 Melee . | . . . Uniques/NPCs Destroyed . | . . . Combat | -11 -10 -9 -------- Run | Yrd Mat Mat Hostile Shots Fired 127 | . 97 30 Missed 31 | . 23 8 Hits 96 | . 74 22 Projectile 96 | . 74 22 Critical Strikes 1 | . . 1 Damage Taken 1041 | . 732 309 Core 197 | . 134 63 Absorbed by Shields . | . . . Core Remaining (%) 73 | 100 46 . Volleys Fired 46 | . 35 11 Largest 2 | . 2 2 Hottest 50 | . 50 50 Shots Fired 51 | . 37 14 Gun 40 | . 35 5 Cannon . | . . . Launcher 11 | . 2 9 Special . | . . . Kinetic 39 | . 35 4 Thermal 1 | . . 1 Explosive 11 | . 2 9 Electromagnetic . | . . . Robot Hit Streak 6 | . 6 3 Robot Miss Streak 5 | . 5 1 Penetration Max . | . . . Secondary Targets . | . . . Shots Hit Robots 28 | . 19 9 Core Hits 20 | . 11 9 Critical Kills . | . . . Critical Parts Destroyed . | . . . Critical Strikes . | . . . Melee Attacks . | . . . Impact . | . . . Slashing . | . . . Piercing . | . . . Sneak Attacks . | . . . Combat Hostiles . | . . . Follow-up Attacks . | . . . Damage Inflicted 732 | . 326 406 Guns 256 | . 231 25 Cannons . | . . . Explosions 476 | . 95 381 Melee . | . . . Ramming . | . . . Kinetic 243 | . 231 12 Thermal 13 | . . 13 Explosive 476 | . 95 381 Electromagnetic . | . . . Impact . | . . . Slashing . | . . . Piercing . | . . . Highest Corruption . | . . . Average Corruption . | . . . Corruption Purged . | . . . Corruption Blocked . | . . . Overload Shots . | . . . Overflow Damage 18 | . . 18 Projectiles . | . . . Explosions 18 | . . 18 Melee . | . . . Knockbacks . | . . . Impact . | . . . Kinetic . | . . . Secondary . | . . . Self-Inflicted Damage 64 | . 6 58 Shots 6 | . 1 5 Rammed . | . . . Targets Rammed . | . . . Kicked . | . . . Crushed . | . . . Highest Temperature 5 | . 5 . Average Temperature 5 | . 5 . Received Heat Transfer 288 | . 198 90 Siege Activations . | . . . Martial Activations . | . . . Shielding Activations . | . . . Robots Disrupted . | . . . Combat Hostiles . | . . . Robots Corrupted . | . . . Combat Hostiles . | . . . Parts Fried . | . . . Impact Corruptions . | . . . Robots Melted . | . . . Combat Hostiles . | . . . Parts Melted . | . . . Heat Transferred 37 | . . 37 Parts Sabotaged . | . . . Parts Stolen . | . . . Parts Stripped . | . . . Power Chain Reactions . | . . . Alert | -11 -10 -9 ------- Run | Yrd Mat Mat Maximum Alert Level . | . . . Low Security (%) 100 | 100 100 100 Level 1 . | . . . Level 2 . | . . . Level 3 . | . . . Level 4 . | . . . Level 5 . | . . . High Security . | . . . Max Security . | . . . Peak Influence 162 | . 162 59 Initial 59 | . . 59 Average 50 | . 82 29 Influence Increases 284 | . 202 82 Destroy 0b10 Robot/C 180 | . 140 40 Destroy 0b10 Robot/NC 5 | . . 5 Destroy Leader 32 | . 30 2 Disable Machine 15 | . 15 . Destroy Structure 52 | . 17 35 Influence Decreases 284 | . 60 224 Entered New Map 83 | . . 83 Time Decay 150 | . 60 90 Lost Part 51 | . . 51 Squads Dispatched 1 | . . 1 Investigation . | . . . Extermination . | . . . Reinforcement 1 | . . 1 Assault . | . . . Garrison . | . . . Intercept . | . . . Searches Triggered . | . . . Construction Impeded 1 | . . 1 Haulers Reinforced . | . . . Active Scanning Responses . | . . . Cargo Convoy Interrupts . | . . . Stealth | -11 -10 -9 --------- Run | Yrd Mat Mat Distress Signals 2 | . 1 1 Communications Jammed . | . . . Distress Signals . | . . . Times Spotted 18 | . 7 11 Peak Tracking Total 7 | . 6 7 Tactical Retreats 2 | . . 2 ECM-based Alert Blocks 5 | . . 5 Traps | -11 -10 -9 ------- Run | Yrd Mat Mat Traps Triggered . | . . . Indirectly . | . . . Trap Hack Attempts . | . . . Triggered . | . . . Disarmed . | . . . Reprogrammed . | . . . Reused . | . . . Traps Extracted . | . . . Installed . | . . . Triggered . | . . . Machines | -11 -10 -9 ---------- Run | Yrd Mat Mat Machines Disabled 1 | . 1 . Max in Single Turn 1 | . 1 . Machines Repaired . | . . . Machines Dismantled . | . . . Machines Sabotaged . | . . . Overloaded Fab Kills . | . . . Hacking | -11 -10 -9 --------- Run | Yrd Mat Mat Machines Accessed 2 | . 2 . Terminals 2 | . 2 . Fabricators . | . . . Repair Stations . | . . . Recycling Units . | . . . Scanalyzers . | . . . Garrison Access . | . . . Total Hacks 6 | . 6 . Successful 6 | . 6 . Failed . | . . . Catastrophic . | . . . Database Lockouts . | . . . Manual . | . . . Terminals 6 | . 6 . Fabricators . | . . . Repair Stations . | . . . Recycling Units . | . . . Scanalyzers . | . . . Garrison Access . | . . . Terminal Hacks 6 | . 6 . Record 2 | . 2 . Prototype ID Bank 1 | . 1 . Alert Level 2 | . 2 . Maintenance Status 1 | . 1 . Fabricator Hacks . | . . . Repair Station Hacks . | . . . Recycling Unit Hacks . | . . . Scanalyzer . | . . . Garrison Access Hacks . | . . . Unauthorized Hacks . | . . . Terminals . | . . . Fabricators . | . . . Repair Stations . | . . . Recycling Units . | . . . Scanalyzers . | . . . Garrison Access . | . . . Data Cores Recovered . | . . . Used . | . . . Hacking Detections 1 | . 1 . Full Trace Events . | . . . Feedback Events . | . . . Feedback Blocked . | . . . Robot Schematics Acquired . | . . . Robots Built . | . . . Authchips . | . . . Time . | . . . Total Robot Build Rating . | . . . Part Schematics Acquired . | . . . Parts Built . | . . . Authchips . | . . . Time . | . . . Total Part Build Rating . | . . . Part Studies Acquired . | . . . Parts Repaired . | . . . Time . | . . . Parts Recycled . | . . . Recycled Matter . | . . . Retrieved Matter . | . . . Retrieved Components . | . . . Parts Scanalyzed . | . . . Part Schematics Acquired . | . . . Parts Damaged . | . . . Bothacking | -11 -10 -9 ------------ Run | Yrd Mat Mat Used RIF Installer . | . . . Robots Hacked . | . . . Non-combat . | . . . Combat . | . . . Robot Hacks Applied . | . . . Relay Couplers Released . | . . . Fabnet Peak Effective % . | . . . Robots Rewired . | . . . Allies Hacked . | . . . Hacks Repelled . | . . . Allies | -11 -10 -9 -------- Run | Yrd Mat Mat Total Allies . | . . . Largest Group . | . . . Highest-Rated Group . | . . . Highest-Rated Ally . | . . . Total Orders . | . . . Ally Attacks . | . . . Total Damage . | . . . Kills . | . . . Allies Corrupted . | . . . Allies Melted . | . . . Intel | -11 -10 -9 ------- Run | Yrd Mat Mat Active Infowar (turns) 202 | . 19 183 ECM 202 | . 19 183 Robot Analysis Total . | . . . Derelict Logs Recovered . | . . . Drone Launches . | . . . Drone Recoveries . | . . . Exploration | -11 -10 -9 ------------- Run | Yrd Mat Mat Turns Passed 455 | 59 213 183 Spaces Moved 222 | 50 98 74 Core 1 | 1 . . Treads 98 | . 38 60 Legs . | . . . Wheels 123 | 49 60 14 Hover . | . . . Flight . | . . . Fastest Speed 50 | 50 90 95 Average Speed 120 | 87 117 147 Slowest Speed 160 | 90 160 160 Overloaded Moves . | . . . Propulsion Burnouts . | . . . Robots Hopped . | . . . Potential Cave-ins . | . . . Cave-ins Triggered . | . . . Exploration Rate (%) 13 | 4 26 11 Regions Visited 2 Branch Regions . Pre-discovered Areas . | . . . Known Exits Taken . | . . . Unknown Exits Taken 2 | 1 1 . Scrap Searched . | . . . Spaces Dug . | . . . Terrain Destroyed 49 | . 15 34 Melee . | . . . Projectile . | . . . AOE 49 | . 15 34 Terrain Rammed . | . . . Walls Destroyed . | . . . Machines Disabled . | . . . Actions | -11 -10 -9 --------- Run | Yrd Mat Mat Total 357 | 65 158 134 Wait 48 | . 11 37 Move 220 | 49 97 74 Hop . | . . . Pick Up 22 | 10 8 4 Fast Attach . | . . . Attach 18 | 6 5 7 Detach 1 | . . 1 Swap 2 | . 2 . Drop . | . . . Fire 46 | . 35 11 Melee . | . . . Ram . | . . . Kick . | . . . Crush . | . . . Escape Stasis . | . . . Rewire . | . . . Trap . | . . . Miscellaneous . | . . . Route ------- -11/Scrapyard -10/Materials -9/Materials History --------- Turn | Location | Event 23 | -11/Scrapyard | Discovered new exit (range 15) 60 | -11/Scrapyard | Entered Materials 149 | -10/Materials | Core integrity fell below 50% 172 | -10/Materials | Lost 4 parts (2n2w) 241 | -10/Materials | Discovered new exit (range 16) 273 | -10/Materials | Entered another Materials area 273 | -9/Materials | Evolved 2 slots: Utility x2 323 | -9/Materials | Build established: Mutant 456 | -9/Materials | Self-destructed Last Messages --------------- G-34 Mercenary destroyed. Ion Engine destroyed. Destroyed Ion Engine. U-05 Engineer builds a Wall. Assault Rifle destroyed. Lgt. Treads destroyed. G-34 Mercenary destroyed. The unstable cave ceiling collapses. K-01 Serf collects debris. R-06 Scavenger collects Aluminum Leg. U-05 Engineer lays Concrete. ALERT: Construction progress impeded, dispatching reinforcements to local area. R-06 Scavenger destroyed. Critical hit (Burn: +37). R-06 Scavenger collects Aluminum Leg. Grenade Launcher destroyed. R-06 Scavenger collects Tractor Beam. Lgt. Nuclear Core destroyed. K-01 Serf collects debris. Map ----- +----------------------------------------------------+ | ??????????????????????????????????????# #????? | | ??????????????????????????????????????# """ #????? | | ??????????????????????????????????????# """ #????? | | ??????????????????????????????????????# """ #????? | | ??????????????????????????????????????# ###### | | ??????????????????????????????????????# ## # | | ??????????????????????????????????????#!!! ## # | | ??????????????????????????????????????#! / ## # | | ????????????????????????+#########+#+?#!! ## # | | ??????????????????????? ?# ## # | | ??????????????????????? ## ## # | | ?????????????????????? s + ## # | | ???????????????????????# ###+### | | ???????????????????????# | | ???????????????????????# " | | ???????????????????????# s | | ???????????????????????# ss#####+##### #### | | ???????????????????????# #?????????# #??###### | | ???????????????????????# #?????????# #???????? | | ???????????????????????# #?????????# #???????? | | ???????????????????????# #???????? # #???????? | | ???????????????????????# #???????? # #???????? | | ???????????????????????# ########? ##??????? | | ???????????????????????# ## # ##?????? | | ??????????????????????## = # #?????? | | ??????????????????????# @ = # ###?????? | | ??????????????????????# # [[ ##??????? | | ??????????????????????# # [[ ##??????? | | ??????????????????????# # [[ ##??????? | | ??????????????????????# #### #???????? | | ??????????????????????# ########+###???????? | | ??????????????????????# Yg ??????? | | ??????????????????????# r% ?????? | | ??????????????????????#k ????? | | ??????????????????????# a##################???? | | ????????????????????? ####????????????????????? | | ????????????????????# ????????????????????????? | | ????????????????????# ????????????????????????? | | ????????????????????# ????????????????????????? | | ????????????????????# ????????????????????????? | | ????????????????????# ###????????????????????????? | | ????????????????????# ???????????????????????????? | | ????????????????????# ???????????????????????????? | | ????????????????????#????????????????????????????? | | ?????????????????????????????????????????????????? | | ?????????????????????????????????????????????????? | | ?????????????????????????????????????????????????? | | ?????????????????????????????????????????????????? | | ?????????????????????????????????????????????????? | | ?????????????????????????????????????????????????? | +----------------------------------------------------+ Best States ------------- Heat Dissipation 52 Energy Generation 14 Energy Capacity 250 Matter Stores 269 Matter Capacity 300 Sight Range 16 Terrain Scan Density 10 ECM Strength 1 Evasion (%) 44 Recoil Reduction 2 Item Schematics ----------------- None Robot Schematics ------------------ None Fabricated ------------ Nothing Repaired ---------- Nothing Studied --------- None Alien Tech Used ----------------- None Achievements -------------- None Challenges ------------ None Game ------ Seed NanofilamentsAerolevArray Manual? 0 Play Time 00:07:48 Cumulative 6.0 hours Start 2025.12.13 @ 08:12:00 End 2025.12.13 @ 18:26:38 Sessions 3 Manual Loads 0 Difficulty Rogue Special Mode None Game No. 18 Rogue 17 Adventurer 0 Explorer 1 Win Type - Total 0 Types 0/0/0/0/0/0/0/0/0/0 Lore% 8 Gallery% 9 Achievement% 9 Wizard Run 0 Options --------- Layout 1 ASCII 0 Keyboard 0 Movement Mouse Keybinds 0 Fullscreen 2 Font 24/Smallcaps Map View 50x35 Zoom Use 11% Tactical HUD 0 Map Filters NONE Filters NONE Steam 1 RUN: 49b41dd6-cb7c-41a9-9303-5a74944578f5